bitfinex-derivatives/quotes_BNBF0:USTF0_20250524
["timestamp","ask_amount","ask_price","bid_price","bid_amount"]
[1748047355916,1.10410769,660.44,659.87,2.12035388]
[1748047356112,1.10410769,660.43,659.87,2.12035388]
[1748047356312,1.10410769,660.42,659.87,2.12035388]
[1748047356510,1.4328367,660.5,659.87,2.12035388]
[1748047356709,0.3028009,660.5,659.87,2.12035388]
[1748047356911,1.5981944,660.49,659.88,1.11735388]
[1748047357114,1.5981944,660.48,659.88,1.11735388]
[1748047357316,1.5981944,660.47,659.88,1.11735388]
[1748047357611,1.10406025,660.46,659.88,1.11735388]
[1748047357816,1.10406025,660.45,659.88,1.11735388]
[1748047358021,1.10406025,660.44,659.88,1.11735388]
[1748047358215,0.3028009,660.5,659.88,1.11735388]
[1748047358411,1.10404689,660.49,659.88,1.11735388]
[1748047358617,1.10404689,660.48,659.88,1.11735388]
[1748047358815,1.10404689,660.47,659.88,1.11735388]
[1748047359050,1.10404689,660.46,659.88,1.11735388]
[1748047359216,0.3028009,660.5,659.94,1.11735388]
[1748047361618,0.3028009,660.5,659.97,1.11735388]
[1748047365418,0.3028009,660.5,659.92,1.11735388]
[1748047366319,0.3028009,660.5,659.93,1.416]
[1748047366618,0.3028009,660.5,659.93,2.555]
[1748047375932,0.3028009,660.5,659.93,3.584]
[1748047377829,0.3028009,660.5,659.95,1.11735388]
[1748047380533,0.3028009,660.5,659.97,1.11735388]
[1748047383838,0.3028009,660.5,659.96,1.11735388]
[1748047385436,0.3028009,660.5,659.97,1.358]
[1748047392345,1.1300358,660.74,659.97,1.358]
[1748047392532,1.10190715,660.73,659.97,1.358]
[1748047392734,1.1300358,660.86,660.01,1.11735388]
[1748047392936,1.59506912,660.85,660.01,1.11735388]
[1748047393139,1.59506912,660.84,660.01,1.11735388]
[1748047393339,1.59508967,660.83,660.01,1.11735388]
[1748047393532,1.59508967,660.82,660.01,1.11735388]
[1748047393736,1.59508967,660.81,660.01,1.11735388]
[1748047393937,1.59508967,660.8,660.01,1.11735388]
[1748047394153,1.59508967,660.79,660.01,1.11735388]
[1748047394344,1.59508967,660.78,660.01,1.11735388]
[1748047394541,1.59508967,660.77,660.01,1.11735388]
[1748047394748,1.5947281,660.76,660.01,1.11735388]
[1748047394936,1.10161798,660.75,660.01,1.11735388]
[1748047395134,1.10161798,660.74,660.01,1.11735388]
[1748047395335,1.10161798,660.73,660.01,1.11735388]
[1748047395538,1.10161798,660.72,659.99,1.11735388]
[1748047395738,1.10161798,660.71,659.99,1.11735388]
[1748047395937,1.1300358,660.83,659.99,1.11735388]
[1748047396139,1.89753339,660.82,659.99,1.11735388]
[1748047396339,1.59487912,660.81,659.99,1.11735388]
[1748047396536,1.89785135,660.8,659.99,1.11735388]
[1748047396838,1.89785593,660.79,659.99,1.11735388]
[1748047397037,1.59518792,660.78,659.99,1.11735388]
[1748047397242,1.59518792,660.77,659.99,1.11735388]
[1748047397439,1.59516478,660.76,659.99,1.11735388]
[1748047397635,1.59516478,660.75,659.99,1.11735388]
[1748047397842,1.59516478,660.74,659.99,1.11735388]
[1748047398036,1.10192267,660.73,659.99,1.11735388]
[1748047398239,1.10192267,660.72,659.99,1.11735388]
[1748047398454,1.10192267,660.71,659.99,1.11735388]
[1748047398640,1.10192267,660.7,659.99,1.11735388]
[1748047398843,0.30266801,660.79,659.99,1.11735388]
[1748047399038,1.59533048,660.78,659.99,1.11735388]
[1748047399239,1.59533048,660.77,659.99,1.11735388]
[1748047399444,1.59533048,660.76,659.99,1.11735388]
[1748047399641,1.59533048,660.75,659.99,1.11735388]
[1748047399843,0.30266801,660.79,659.99,1.11735388]
[1748047399844,1.59533048,660.74,660.0,1.242]
[1748047400039,1.1019848,660.73,660.0,1.242]
[1748047400243,1.10259006,660.72,660.0,1.242]
[1748047400441,1.10259006,660.71,660.0,1.242]
[1748047400641,1.10259006,660.7,660.0,1.242]
[1748047400839,1.10259006,660.69,660.0,1.242]
[1748047401042,1.10259006,660.68,660.0,1.242]
[1748047401244,1.10415291,660.67,660.0,1.242]
[1748047401446,1.10414659,660.66,660.01,1.11735388]
[1748047401745,1.10414659,660.65,660.01,1.11735388]
[1748047401948,1.10414659,660.64,660.01,1.11735388]
[1748047402244,1.10414659,660.63,660.01,1.11735388]
[1748047402540,1.10414659,660.62,660.01,1.11735388]
[1748047402744,1.10414659,660.61,660.01,1.11735388]
[1748047402938,1.10414659,660.6,660.01,1.11735388]
[1748047403139,1.10414659,660.59,660.01,1.11735388]
[1748047403441,1.10414659,660.58,660.01,1.11735388]
[1748047403638,0.30266801,660.79,660.01,1.11735388]
[1748047403845,1.59908214,660.78,660.01,1.11735388]
[1748047404039,1.90175931,660.77,660.01,1.11735388]
[1748047404242,1.9017639,660.76,660.01,1.11735388]
[1748047404443,1.90176848,660.75,660.01,1.11735388]
[1748047404645,1.90177306,660.74,660.01,1.11735388]
[1748047404843,1.90177764,660.73,660.01,1.11735388]
[1748047405041,1.59908214,660.72,660.01,1.11735388]
[1748047405242,1.59908214,660.71,660.01,1.11735388]
[1748047405446,1.59908214,660.7,660.02,1.11735388]
[1748047405746,1.59908791,660.69,660.02,1.11735388]
[1748047405946,1.59908791,660.68,660.02,1.11735388]
[1748047406139,1.59908791,660.67,660.02,1.11735388]
[1748047406345,1.5985743,660.66,660.02,1.11735388]
[1748047406641,1.10492838,660.65,660.02,1.11735388]
[1748047406841,1.10492838,660.64,660.02,1.11735388]
[1748047407041,1.10492838,660.63,660.02,1.11735388]
[1748047407245,1.10492838,660.62,660.02,1.11735388]
[1748047407446,1.105188,660.61,660.02,1.11735388]
[1748047407641,0.3026955,660.73,660.02,1.11735388]
[1748047407845,1.59888042,660.72,660.02,1.11735388]
[1748047408041,1.59888042,660.71,660.03,1.235]
[1748047408343,1.59888042,660.7,660.03,1.235]
[1748047408544,1.59888042,660.69,660.03,1.235]
[1748047408752,1.59888042,660.68,660.03,1.235]
[1748047409041,0.3026955,660.73,660.03,1.235]
[1748047409042,1.59888042,660.67,660.05,1.11735388]
[1748047409247,1.10519551,660.66,660.05,1.11735388]
[1748047409441,1.10519551,660.65,660.05,1.11735388]
[1748047409645,1.10519551,660.64,660.05,1.11735388]
[1748047409841,1.10519551,660.63,660.05,1.11735388]
[1748047410041,0.3026955,660.73,660.05,1.11735388]
[1748047410249,1.10526021,660.72,660.05,1.11735388]
[1748047410546,1.10526021,660.71,660.05,1.11735388]
[1748047410744,1.10526021,660.7,660.05,1.11735388]
[1748047410943,1.10526021,660.69,660.05,1.11735388]
[1748047411243,0.3026955,660.73,660.05,1.11735388]
[1748047411446,1.1052804,660.72,660.05,1.11735388]
[1748047411641,1.1052804,660.71,660.05,1.11735388]
[1748047411844,1.1052804,660.7,660.05,1.11735388]
[1748047412052,0.3026955,660.73,660.05,1.11735388]
[1748047412250,1.10478479,660.72,660.05,1.11735388]
[1748047412550,1.10478479,660.71,660.13,1.11735388]
[1748047412750,1.10481106,660.7,660.13,1.11735388]
[1748047413053,0.3026955,660.73,660.13,1.11735388]
[1748047413249,1.10481106,660.72,660.13,1.11735388]
[1748047413545,1.10481106,660.71,660.13,1.11735388]
[1748047413756,1.10481106,660.7,660.13,1.11735388]
[1748047413952,0.3026955,660.73,660.13,1.11735388]
[1748047414156,1.10484812,660.72,660.13,1.11735388]
[1748047414352,0.3026955,660.73,660.13,1.11735388]
[1748047414750,1.10486514,660.72,660.13,1.11735388]
[1748047414950,0.3026955,660.73,660.13,1.11735388]
[1748047415150,1.10486716,660.72,660.13,1.11735388]
[1748047415353,1.10486716,660.71,660.13,1.11735388]
[1748047415651,1.10486716,660.7,660.11,1.11735388]
[1748047415852,1.10486716,660.69,660.11,1.11735388]
[1748047416049,0.3026955,660.73,660.11,1.11735388]
[1748047416251,1.10497795,660.72,660.11,1.11735388]
[1748047416463,1.5987173,660.71,660.11,1.11735388]
[1748047416755,1.5987173,660.7,660.11,1.11735388]
[1748047416961,1.10512753,660.69,660.11,1.11735388]
[1748047417154,1.10512753,660.68,660.11,1.11735388]
[1748047417350,1.10512753,660.67,660.11,1.11735388]
[1748047417557,1.10512753,660.66,660.11,1.11735388]
[1748047417853,1.10512753,660.65,660.11,1.11735388]
[1748047418050,1.10512753,660.64,660.11,1.11735388]
[1748047418249,1.10512753,660.63,660.11,1.11735388]
[1748047418451,1.10512753,660.62,660.11,1.11735388]
[1748047418648,0.3026955,660.73,660.11,1.11735388]
[1748047418855,1.59923696,660.72,660.04,1.11735388]
[1748047419065,1.59923696,660.71,660.04,1.11735388]
[1748047419265,1.59923696,660.7,660.04,1.11735388]
[1748047419458,1.59923696,660.69,660.04,1.11735388]
[1748047419656,1.59923696,660.68,660.04,1.11735388]
[1748047419857,1.59923696,660.67,660.04,1.11735388]
[1748047420157,1.10547453,660.66,660.05,1.38]
[1748047420459,1.10547453,660.65,660.05,2.516]
[1748047420659,1.10556577,660.64,660.05,2.516]
[1748047420860,1.10556577,660.63,660.05,2.516]
[1748047421059,1.10556577,660.62,660.05,2.516]
[1748047421268,0.3026955,660.73,660.05,2.516]
[1748047421459,1.1300358,660.71,660.14,1.11735388]
[1748047421660,1.5994235,660.7,660.14,1.11735388]
[1748047421958,1.59942208,660.69,660.14,1.11735388]
[1748047422157,1.59942208,660.68,660.14,1.11735388]
[1748047422360,1.10560232,660.67,660.14,1.11735388]
[1748047422555,1.10560232,660.66,660.14,1.11735388]
[1748047422756,1.10560232,660.65,660.14,1.11735388]
[1748047422965,1.10560232,660.64,660.14,1.11735388]
[1748047423160,1.10560232,660.63,660.14,1.11735388]
[1748047423361,1.10560232,660.62,660.14,1.11735388]
[1748047423564,1.1300358,660.71,660.14,1.11735388]
[1748047423767,1.59949863,660.7,660.14,1.11735388]
[1748047423972,1.59949863,660.69,660.14,1.11735388]
[1748047424177,1.59949863,660.68,660.14,1.11735388]
[1748047424361,1.10565626,660.67,660.14,1.11735388]
[1748047424562,1.10565626,660.66,660.14,1.11735388]
[1748047424765,1.10565626,660.65,660.12,1.11735388]
[1748047424965,1.10565626,660.64,660.12,1.11735388]
[1748047425265,0.3026955,660.73,660.12,1.11735388]
[1748047425266,1.10565626,660.63,660.12,1.11735388]
[1748047425466,0.3026955,660.73,660.12,1.11735388]
[1748047425668,1.59966471,660.72,660.12,1.11735388]
[1748047425860,1.59966471,660.71,660.12,1.11735388]
[1748047426065,1.59966471,660.7,660.12,1.11735388]
[1748047426266,1.59966471,660.69,660.12,1.11735388]
[1748047426565,1.59966471,660.68,660.12,1.11735388]
[1748047426867,1.10573556,660.67,660.12,1.11735388]
[1748047427061,1.10573556,660.66,660.12,1.11735388]
[1748047427265,1.1058375,660.65,660.12,1.11735388]
[1748047427459,1.1058375,660.64,660.14,1.11735388]
[1748047427664,1.1058375,660.63,660.14,1.11735388]
[1748047427863,1.10584483,660.62,660.14,1.11735388]
[1748047428065,1.4327313,660.73,660.14,1.11735388]
[1748047428269,1.59990589,660.72,660.14,1.11735388]
[1748047428467,1.59990589,660.71,660.14,1.11735388]
[1748047428664,1.59990589,660.7,660.14,1.11735388]
[1748047428891,1.59990589,660.69,660.14,1.11735388]
[1748047429065,1.4327313,660.73,660.14,1.11735388]
[1748047429262,1.59992123,660.72,660.14,1.11735388]
[1748047429463,1.59992123,660.71,660.14,1.11735388]
[1748047429666,1.59992123,660.7,660.14,1.11735388]
[1748047429866,1.59992123,660.69,660.14,1.11735388]
[1748047430068,1.59992123,660.68,660.14,1.11735388]
[1748047430269,1.59992123,660.67,660.13,1.11735388]
[1748047430469,1.10591294,660.66,660.13,1.11735388]
[1748047430669,1.10591294,660.65,660.13,1.11735388]
[1748047430864,1.10591294,660.64,660.13,1.11735388]
[1748047431064,1.10603816,660.63,660.13,1.11735388]
[1748047431367,1.10603816,660.62,660.13,1.11735388]
[1748047431670,1.10603816,660.61,660.13,1.11735388]
[1748047431863,1.4327313,660.73,660.13,1.11735388]
[1748047432063,1.6002684,660.72,660.13,1.11735388]
[1748047432268,1.6002684,660.71,660.13,1.11735388]
[1748047432468,1.6002684,660.7,660.13,1.11735388]
[1748047432669,1.6002684,660.69,660.13,1.11735388]
[1748047432869,1.60038272,660.68,660.13,1.11735388]
[1748047433071,1.60038272,660.67,660.13,1.11735388]
[1748047433268,1.60038272,660.66,660.13,1.11735388]
[1748047433467,1.60038272,660.65,660.13,1.11735388]
[1748047433678,1.60038272,660.64,660.14,1.11735388]
[1748047433869,1.60038272,660.63,660.14,1.11735388]
[1748047434068,1.10628706,660.62,660.14,1.11735388]
[1748047434266,1.10628706,660.61,660.14,1.11735388]
[1748047434471,1.10628706,660.6,660.14,1.11735388]
[1748047434672,1.10644797,660.59,660.15,1.407]
[1748047434874,1.10644797,660.58,660.15,1.407]
[1748047435172,1.10643991,660.57,660.15,1.407]
[1748047435373,1.10643991,660.56,660.15,1.407]
[1748047435673,1.1300358,660.68,660.15,1.407]
[1748047435979,1.60076299,660.67,660.15,1.407]
[1748047436205,1.60076299,660.66,660.15,1.407]
[1748047436380,1.60076299,660.65,660.15,1.407]
[1748047436574,1.60076299,660.64,660.15,1.407]
[1748047436769,1.60076299,660.63,660.15,1.407]
[1748047436973,1.60076299,660.62,660.16,1.545]
[1748047437172,1.60076299,660.61,660.16,1.545]
[1748047437370,1.10650099,660.6,660.16,1.545]
[1748047437669,1.10650099,660.59,660.16,1.545]
[1748047437870,1.10650099,660.58,660.16,1.545]
[1748047438074,1.10650099,660.57,660.16,1.545]
[1748047438273,1.10650099,660.56,660.16,1.545]
[1748047438471,1.10650099,660.55,660.16,1.545]
[1748047438770,1.10650099,660.54,660.16,1.545]
[1748047438973,1.10650099,660.53,660.16,1.545]
[1748047439173,1.10650099,660.52,660.16,1.545]
[1748047439477,1.10650099,660.51,660.16,1.545]
[1748047439673,1.10650099,660.5,660.16,1.545]
[1748047439874,1.10650099,660.49,660.16,1.545]
[1748047440069,1.1300358,660.6,660.16,1.545]
[1748047440277,1.60095988,660.59,660.16,1.545]
[1748047440483,1.60095988,660.58,660.16,1.545]
[1748047440670,1.60095988,660.57,660.16,1.545]
[1748047440975,1.10666663,660.56,660.16,1.545]
[1748047441168,1.10666663,660.55,660.16,1.545]
[1748047441373,1.10660933,660.54,660.16,1.545]
[1748047441572,1.10660933,660.53,660.16,1.545]
[1748047441775,1.1300358,660.6,660.16,1.545]
[1748047441969,1.60093548,660.59,660.16,1.545]
[1748047442171,1.60093548,660.58,660.16,1.545]
[1748047442367,1.10662737,660.57,660.16,1.545]
[1748047442572,1.10662737,660.56,660.16,1.545]
[1748047442773,1.10662737,660.55,660.16,1.545]
[1748047442973,1.10661323,660.54,660.16,1.545]
[1748047443174,1.10661323,660.53,660.16,1.545]
[1748047443371,1.1300358,660.65,660.16,1.545]
[1748047443578,1.60090125,660.64,660.16,1.545]
[1748047443875,1.60090125,660.63,660.16,1.545]
[1748047444076,1.60090125,660.62,660.16,1.545]
[1748047444279,1.60090125,660.61,660.16,1.545]
[1748047444478,1.60090125,660.6,660.16,1.545]
[1748047444686,0.49429769,660.59,660.16,1.545]
[1748047444875,1.6009187,660.58,660.16,1.545]
[1748047445177,1.6009187,660.57,660.16,1.545]
[1748047445377,1.6009187,660.56,660.16,1.545]
[1748047445578,1.6009187,660.55,660.16,1.545]
[1748047445779,1.6009187,660.54,660.16,1.545]
[1748047445977,1.6009187,660.53,660.16,1.545]
[1748047446173,1.6009187,660.52,660.16,1.545]
[1748047446376,1.6009187,660.51,660.16,1.545]
[1748047446578,1.6009187,660.5,660.16,1.545]
[1748047446800,1.6009187,660.49,660.16,1.545]
[1748047446977,1.6009187,660.48,660.16,1.545]
[1748047447177,1.6009187,660.47,660.16,1.545]
[1748047447375,1.10662101,660.46,660.16,1.545]
[1748047447579,1.10662101,660.45,660.16,1.545]
[1748047447781,1.10662101,660.44,660.16,1.545]
[1748047447980,1.10662101,660.43,660.16,1.545]
[1748047448276,1.10662101,660.42,660.16,1.545]
[1748047448480,1.10662101,660.41,660.16,1.545]
[1748047448680,1.10662101,660.4,660.16,1.545]
[1748047448898,1.10662101,660.39,660.16,1.545]
[1748047449083,1.60449408,660.38,660.16,1.545]
[1748047449287,1.10759468,660.37,660.16,1.545]
[1748047449484,1.10759468,660.36,660.16,1.545]
[1748047449677,1.10759468,660.35,660.16,1.545]
[1748047449878,1.10759468,660.34,660.16,1.545]
[1748047450079,1.1300358,660.54,660.16,1.545]
[1748047450282,1.90845317,660.53,660.16,1.545]
[1748047450487,1.90845775,660.52,660.16,1.545]
[1748047450780,1.90846234,660.51,660.16,1.545]
[1748047450980,1.90846692,660.5,660.16,1.545]
[1748047451283,1.90847151,660.49,660.16,1.545]
[1748047451486,1.1300358,660.47,660.16,1.545]
[1748047451687,1.60566602,660.46,660.16,1.545]
[1748047451882,1.60484727,660.45,660.16,1.545]
[1748047452085,1.60484727,660.44,660.16,1.545]
[1748047452288,1.60484727,660.43,660.16,1.545]
[1748047452488,1.60484727,660.42,660.16,1.545]
[1748047452689,1.6043505,660.41,660.16,1.545]
[1748047452890,1.10679415,660.4,660.16,1.545]
[1748047453090,1.10679415,660.39,660.16,1.545]
[1748047453284,1.10679415,660.38,660.16,1.545]
[1748047453486,1.10679415,660.37,660.16,1.545]
[1748047453687,1.43285046,660.47,660.16,1.545]
[1748047453890,1.60400716,660.46,660.16,1.545]
[1748047454090,1.60400716,660.45,660.16,1.545]
[1748047454282,1.60400716,660.44,660.16,1.545]
[1748047454487,1.60372359,660.43,660.16,1.545]
[1748047454689,1.60372359,660.42,660.16,1.545]
[1748047454891,1.10588904,660.41,660.16,1.545]
[1748047455093,1.10588904,660.4,660.16,1.545]
[1748047455287,1.10588904,660.39,660.16,1.545]
[1748047455487,1.10588904,660.38,660.16,1.545]
[1748047455686,0.30281466,660.47,660.16,1.545]
[1748047455890,1.6032216,660.46,660.16,1.545]
[1748047456095,1.90604543,660.45,660.16,1.545]
[1748047456290,1.6032216,660.44,660.16,1.545]
[1748047456489,1.1056309,660.43,660.16,1.545]
[1748047456789,1.1056309,660.42,660.16,1.545]
[1748047456986,1.60316362,660.41,660.16,1.545]
[1748047457187,1.60316362,660.4,660.16,1.545]
[1748047457384,1.60300587,660.39,660.16,1.545]
[1748047457589,1.1056309,660.38,660.16,1.545]
[1748047457890,1.60302532,660.37,660.16,1.545]
[1748047458192,1.1056309,660.36,660.16,1.545]
[1748047458392,1.1056309,660.35,660.16,1.545]
[1748047458590,1.1056309,660.34,660.16,1.545]
[1748047458885,1.1056309,660.33,660.16,1.545]
[1748047459096,1.1056309,660.32,660.16,1.545]
[1748047459289,0.30286051,660.37,660.16,1.545]
[1748047459488,1.6015424,660.36,660.16,1.545]
[1748047459790,1.10447652,660.35,660.16,1.545]
[1748047460006,1.10447652,660.34,660.05,1.38]
[1748047460295,1.10447652,660.33,660.05,1.38]
[1748047460491,1.10447652,660.32,660.05,1.38]
[1748047460792,0.30286051,660.37,660.05,1.38]
[1748047460986,1.10416892,660.36,660.05,1.38]
[1748047461189,1.10416892,660.35,660.05,1.38]
[1748047461387,1.10416892,660.34,660.05,1.38]
[1748047461587,1.10416892,660.33,660.05,1.38]
[1748047461889,0.30286051,660.37,660.05,1.38]
[1748047462091,1.10390251,660.36,660.05,1.38]
[1748047462391,1.10390251,660.35,660.05,1.38]
[1748047462686,1.10390251,660.34,660.05,1.38]
[1748047462886,1.10390251,660.33,660.05,1.38]
[1748047463094,0.30286051,660.37,660.05,1.38]
[1748047463294,1.10383381,660.36,660.05,1.38]
[1748047463494,1.10383381,660.35,660.06,1.277]
[1748047463692,1.10383381,660.34,660.06,1.277]
[1748047463993,1.10383381,660.33,660.06,1.277]
[1748047464197,0.30286051,660.37,660.06,1.277]
[1748047464490,1.10335692,660.36,660.06,1.277]
[1748047464690,1.10335692,660.35,660.06,1.277]
[1748047464893,1.10335692,660.34,660.06,1.277]
[1748047465090,1.10335692,660.33,660.06,1.277]
[1748047465293,0.30286051,660.37,660.06,1.277]
[1748047465490,1.10315427,660.36,660.06,1.277]
[1748047465692,1.10315427,660.35,660.06,1.277]
[1748047465901,1.10315427,660.34,660.06,1.277]
[1748047466091,0.30286051,660.37,660.06,1.277]
[1748047466296,1.10302237,660.36,660.06,1.277]
[1748047466496,1.10302237,660.35,660.06,1.277]
[1748047466696,1.10302237,660.34,660.06,1.277]
[1748047466996,0.30286051,660.37,660.06,1.277]
[1748047467196,1.10297348,660.36,660.06,1.277]
[1748047467390,1.10297348,660.35,660.06,1.277]
[1748047467591,1.10297348,660.34,660.06,1.277]
[1748047467797,1.10297348,660.33,660.06,1.277]
[1748047468092,0.30286051,660.37,660.06,1.277]
[1748047468397,1.10280603,660.36,660.06,1.277]
[1748047468596,1.10280603,660.35,660.06,1.277]
[1748047468793,1.10280603,660.34,660.06,1.277]
[1748047468991,0.30286051,660.37,660.06,1.277]
[1748047469196,1.10265835,660.36,660.06,1.277]
[1748047469396,1.10265835,660.35,660.06,1.277]
[1748047469597,1.10265835,660.34,660.06,1.277]
[1748047469794,0.30286051,660.37,660.06,1.277]
[1748047469994,1.10252642,660.36,660.06,1.277]
[1748047470199,1.10252642,660.35,660.06,1.277]
[1748047470397,0.30286051,660.37,660.06,1.277]
[1748047470598,1.10242823,660.36,660.06,1.277]
[1748047470797,1.10242823,660.35,660.06,1.277]
[1748047471004,0.30286051,660.37,660.06,1.277]
[1748047471194,1.10247759,660.36,660.06,1.277]
[1748047471398,1.10247759,660.35,660.06,1.277]
[1748047471600,0.30286051,660.37,660.06,1.277]
[1748047471799,1.10243819,660.36,660.06,1.277]
[1748047472002,1.10243819,660.35,660.06,1.277]
[1748047472198,0.30286051,660.37,660.06,1.277]
[1748047472430,1.10243135,660.36,660.06,1.277]
[1748047472604,1.10243135,660.35,660.06,1.277]
[1748047472808,0.30286051,660.37,660.06,1.277]
[1748047473004,1.10239866,660.36,660.06,1.277]
[1748047473202,1.10239866,660.35,660.06,1.277]
[1748047473405,0.30286051,660.37,660.06,1.277]
[1748047473605,1.10241078,660.36,660.06,1.277]
[1748047473797,1.10241078,660.35,660.06,1.277]
[1748047474002,1.10241078,660.34,660.06,1.277]
[1748047474199,1.102374,660.33,660.06,1.277]
[1748047474402,0.30286051,660.37,660.06,1.277]
[1748047474603,1.10245502,660.36,660.06,1.277]
[1748047474902,1.10245502,660.35,660.06,1.277]
[1748047475103,1.10245502,660.34,660.06,1.277]
[1748047475300,1.10245502,660.33,660.06,1.277]
[1748047475599,1.10249818,660.32,660.06,1.277]
[1748047475804,0.30286051,660.37,660.06,1.277]
[1748047476000,1.10249796,660.36,660.06,1.277]
[1748047476200,1.10249796,660.35,660.06,1.277]
[1748047476409,1.10249796,660.34,660.06,1.277]
[1748047476635,1.10249796,660.33,660.06,1.277]
[1748047476809,0.30286051,660.37,660.06,1.277]
[1748047477007,1.10252836,660.36,660.06,1.277]
[1748047477307,1.10255764,660.35,660.06,1.277]
[1748047477507,1.10255764,660.34,660.06,1.277]
[1748047477702,1.10255764,660.33,660.06,1.277]
[1748047477905,0.30286051,660.37,660.06,1.277]
[1748047478105,1.10207134,660.36,660.06,1.277]
[1748047478303,1.10207134,660.35,660.06,1.277]
[1748047478605,1.10207134,660.34,660.06,1.277]
[1748047478805,1.10207134,660.33,660.06,1.277]
[1748047479009,0.30286051,660.37,660.06,2.253]
[1748047479309,1.59820402,660.36,660.06,2.253]
[1748047479509,1.59820402,660.35,660.06,2.253]
[1748047479709,1.59820402,660.34,660.06,2.253]
[1748047480009,1.10208808,660.33,660.06,2.253]
[1748047480209,1.10208808,660.32,660.06,2.253]
[1748047480405,1.10208808,660.31,660.06,2.253]
[1748047480610,1.10208808,660.3,660.06,2.253]
[1748047480805,1.10208808,660.29,660.06,2.253]
[1748047481005,0.30286051,660.37,660.06,2.253]
[1748047481208,1.59833648,660.36,660.06,2.253]
[1748047481411,1.59833648,660.35,660.06,2.253]
[1748047481710,1.10215037,660.34,660.06,2.253]
[1748047481907,1.10215037,660.33,660.06,2.253]
[1748047482110,1.10215037,660.32,660.06,2.253]
[1748047482407,1.10215037,660.31,660.06,2.253]
[1748047482612,1.10215037,660.3,660.06,2.253]
[1748047482809,1.10220591,660.29,660.06,2.253]
[1748047483013,1.1021986,660.28,660.06,2.253]
[1748047483214,1.10221521,660.27,660.06,2.253]
[1748047483414,1.10221521,660.26,660.06,2.253]
[1748047483614,1.10221521,660.25,660.06,2.253]
[1748047483813,1.10221521,660.24,660.06,2.253]
[1748047484016,1.10221521,660.23,660.06,2.253]
[1748047484215,0.30286051,660.37,660.06,2.253]
[1748047484514,1.59853209,660.36,660.06,2.253]
[1748047484710,1.90140178,660.35,660.06,2.253]
[1748047484915,1.90140636,660.34,660.06,2.253]
[1748047485114,1.90141095,660.33,660.06,2.253]
[1748047485315,1.90141554,660.32,660.06,2.253]
[1748047485614,1.90142012,660.31,660.06,2.253]
[1748047485813,1.90142471,660.3,660.06,2.253]
[1748047486010,1.90144196,660.29,660.06,2.253]
[1748047486213,1.40520648,660.28,660.06,2.253]
[1748047486514,1.10230469,660.27,660.06,2.253]
[1748047491818,1.10315836,660.26,660.06,2.253]
[1748047492017,1.10315836,660.25,660.06,2.253]
[1748047492218,1.10315836,660.24,660.06,2.253]
[1748047492522,0.30290179,660.28,660.06,2.253]
[1748047492723,1.10329694,660.27,660.06,2.253]
[1748047492918,1.10329694,660.26,660.06,2.253]
[1748047493111,0.30290179,660.28,660.06,2.253]
[1748047493313,1.10332719,660.27,660.06,2.253]
[1748047493613,0.30290179,660.28,660.06,2.253]
[1748047493813,1.10354928,660.27,660.06,2.253]
[1748047494018,1.10356444,660.26,660.06,2.253]
[1748047494217,1.10356444,660.25,660.06,2.253]
[1748047494514,0.30290179,660.28,660.06,2.253]
[1748047494714,1.1038174,660.27,660.06,2.253]
[1748047494915,1.1038174,660.26,660.06,2.253]
[1748047495116,1.1038174,660.25,660.06,2.253]
[1748047495317,1.1038174,660.24,660.06,2.253]
[1748047495519,1.1038174,660.23,660.06,2.253]
[1748047495718,0.30290179,660.28,660.06,0.976]
[1748047495918,1.10412438,660.27,660.06,0.976]
[1748047496121,0.30290179,660.28,660.06,0.976]
[1748047496122,1.10412438,660.26,660.06,0.976]
[1748047496322,1.10412438,660.25,660.06,0.976]
[1748047496515,0.30290179,660.28,660.06,0.976]
[1748047496715,1.10436205,660.27,660.06,0.976]
[1748047497016,1.10436205,660.26,660.06,0.976]
[1748047497217,1.10436205,660.25,660.06,0.976]
[1748047497420,1.10469788,660.24,660.06,0.976]
[1748047497621,0.30290179,660.28,660.06,0.976]
[1748047497823,1.10466139,660.27,660.06,0.976]
[1748047498025,1.10466139,660.26,660.06,0.976]
[1748047498221,1.10466139,660.25,660.06,0.976]